bitfinex/quotes_ETHUSD_20250214
["timestamp","ask_amount","ask_price","bid_price","bid_amount"]
[1739532813377,3.70496,2699.1,2699.0,0.04808155]
[1739532813534,3.70496,2699.1,2698.9,0.0482021]
[1739532813733,4.5293,2699.2,2699.0,0.04808155]
[1739532814046,4.5293,2699.2,2698.7,3.70547]
[1739532814244,4.5293,2699.2,2699.1,0.04796101]
[1739532814594,4.5293,2699.2,2698.7,4.59361452]
[1739532814741,4.5293,2699.2,2699.1,0.04796101]
[1739532814965,4.5293,2699.2,2698.7,4.59361452]
[1739532815168,4.5293,2699.2,2699.1,0.04796101]
[1739532815416,4.5293,2699.2,2698.7,4.59354452]
[1739532815724,4.5293,2699.2,2698.8,0.45935445]
[1739532815885,4.5293,2699.2,2698.8,0.04832266]
[1739532816220,4.5293,2699.2,2698.7,4.59354452]
[1739532816423,4.5293,2699.2,2698.9,0.0482021]
[1739532816619,4.5293,2699.2,2698.8,0.04832266]
[1739532816931,8.23417,2699.2,2698.9,0.0482021]
[1739532817135,4.5293,2699.2,2698.7,4.59354452]
[1739532817416,4.5293,2699.2,2699.0,0.04808155]
[1739532817559,4.5293,2699.2,2698.7,4.59354452]
[1739532817764,4.5293,2699.2,2699.1,0.04796101]
[1739532818084,4.5293,2699.2,2699.1,0.04776094]
[1739532818280,4.5293,2699.2,2698.7,4.59354452]
[1739532818803,4.5293,2699.2,2698.8,0.50747704]
[1739532819641,4.5293,2699.2,2698.8,4.21281704]
[1739532819874,0.8245,2699.2,2698.8,0.50747704]
[1739532820006,0.8245,2699.2,2698.8,4.21275704]
[1739532820204,4.52931,2699.2,2698.8,4.21275704]
[1739532820538,4.52931,2699.2,2698.8,0.50747704]
[1739532821144,3.70496,2699.1,2698.8,0.50747704]
[1739532822452,0.8245,2699.2,2698.8,0.50747704]
[1739532822862,0.8245,2699.2,2698.8,4.21278704]
[1739532823388,3.70469,2699.3,2698.8,4.21278704]
[1739532824241,7.40947,2699.3,2698.8,4.21278704]
[1739532824575,3.7048,2699.2,2698.8,4.21278704]
[1739532824782,7.40943,2699.3,2698.8,4.21278704]
[1739532824987,3.70469,2699.3,2698.8,4.21278704]
[1739532825362,7.40946,2699.3,2698.8,4.21278704]
[1739532825987,3.70488,2699.2,2698.8,0.50747704]
[1739532826163,3.70489,2699.2,2698.8,0.04812259]
[1739532826552,3.70489,2699.2,2698.7,3.70543]
[1739532826753,3.70489,2699.2,2698.9,0.04800203]
[1739532827063,3.70469,2699.3,2699.0,0.04788148]
[1739532827384,3.70469,2699.3,2698.6,3.70553]
[1739532827569,3.70487,2699.2,2699.1,0.04776094]
[1739532827741,3.70487,2699.2,2698.7,4.14844127]
[1739532827946,3.70487,2699.2,2699.1,0.04776094]
[1739532828589,3.70487,2699.2,2698.8,3.70534]
[1739532828743,3.70487,2699.2,2699.1,0.04776094]
[1739532828948,3.70487,2699.2,2698.7,0.44297127]
[1739532829190,3.70487,2699.2,2699.1,0.04776094]
[1739532829385,3.70487,2699.2,2698.7,4.14845127]
[1739532829690,3.70469,2699.3,2698.9,3.70518]
[1739532829852,3.70469,2699.3,2698.8,0.83352072]
[1739532830068,3.70469,2699.3,2698.8,3.75345259]
[1739532830790,3.70482,2699.2,2698.8,3.75345259]
[1739532831106,3.70469,2699.3,2698.8,3.75345259]
[1739532831107,2.01401697,2699.4,2698.8,3.75338259]
[1739532831291,3.70485,2699.2,2698.8,3.75338259]
[1739532832007,3.70485,2699.2,2698.8,0.04812259]
[1739532832364,3.70485,2699.2,2698.7,3.70547]
[1739532832663,3.70485,2699.2,2698.8,0.04812259]
[1739532832864,3.70485,2699.2,2698.7,3.70547]
[1739532833203,3.70485,2699.2,2698.9,0.04800203]
[1739532833401,3.70479,2699.3,2698.8,0.04812259]
[1739532833583,3.7048,2699.2,2699.0,0.04788148]
[1739532833780,3.7048,2699.2,2698.9,0.04800203]
[1739532834106,3.7048,2699.2,2699.0,0.04788148]
[1739532834305,3.7048,2699.2,2698.7,3.70547]
[1739532834604,3.7048,2699.2,2699.1,0.04776094]
[1739532834762,3.7048,2699.2,2698.7,3.70546]
[1739532834964,3.7048,2699.2,2699.1,0.04776094]
[1739532835199,3.7048,2699.2,2698.7,3.70546]
[1739532835387,3.7048,2699.2,2699.1,0.04776094]
[1739532835583,3.7048,2699.2,2698.7,3.70546]
[1739532835787,3.7048,2699.2,2699.1,0.04776094]
[1739532835988,3.7048,2699.2,2698.7,3.70546]
[1739532836203,3.7048,2699.2,2699.1,0.04776094]
[1739532836804,3.7048,2699.2,2698.7,3.70546]
[1739532836963,3.7048,2699.2,2699.1,0.04776094]
[1739532837171,3.7048,2699.2,2698.7,3.70546]
[1739532837511,3.7048,2699.2,2699.1,0.04776094]
[1739532837751,3.7048,2699.2,2698.7,3.70546]
[1739532837954,3.7048,2699.2,2699.1,0.04776444]
[1739532838147,3.7048,2699.2,2698.7,3.70546]
[1739532838349,3.7048,2699.2,2699.1,0.04776444]
[1739532838651,3.7048,2699.2,2698.7,3.70546]
[1739532838814,3.7048,2699.2,2699.1,0.04776444]
[1739532839357,0.7644,2698.6,2698.3,8.75]
[1739532839566,0.7644,2698.6,2698.1,3.7062]
[1739532839854,0.7644,2698.6,2698.1,7.41243]
[1739532840653,0.7644,2698.6,2698.2,3.70613]
[1739532841161,3.70535,2698.8,2698.3,3.70597]
[1739532841360,4.46962,2698.9,2698.4,3.70582]
[1739532841517,4.4694,2699.1,2698.6,3.70562]
[1739532841718,0.7644,2699.1,2698.7,3.70547]
[1739532842022,4.46934,2699.1,2698.6,3.70562]
[1739532842247,0.7644,2699.1,2698.8,3.70532]
[1739532842565,4.46906,2699.3,2698.8,3.70532]
[1739532842746,0.7644,2699.3,2698.9,3.70511]
[1739532842948,0.7644,2699.3,2698.9,3.70509]
[1739532843127,4.46889,2699.5,2698.9,4.075599]
[1739532843338,4.46889,2699.5,2699.0,3.70505]
[1739532843686,3.7042,2699.7,2699.2,3.70472]
[1739532843826,3.7042,2699.7,2699.2,4.1980137]
[1739532844033,3.70393,2699.9,2699.2,4.1980137]
[1739532844034,3.70384,2699.9,2699.2,3.70472]
[1739532844263,0.7644,2700.0,2699.2,3.70472]
[1739532844439,0.7644,2700.0,2699.2,4.93293697]
[1739532844440,3.70391,2699.9,2699.2,4.93293697]
[1739532844639,3.70391,2699.9,2699.4,3.70451]
[1739532845229,7.40784,2699.9,2699.4,3.70451]
[1739532845420,0.7644,2700.0,2699.2,1.22821697]
[1739532845625,0.7644,2700.0,2699.4,3.70442]
[1739532845827,8.17196,2700.0,2699.4,3.70441]
[1739532846105,0.7644,2700.0,2699.4,3.70441]
[1739532846370,3.70358,2700.1,2699.4,3.70439]
[1739532846569,3.70358,2700.1,2699.5,3.70437]
[1739532846726,4.5198,2700.2,2699.6,4.444996]
[1739532846921,4.5198,2700.2,2699.6,3.70412]
[1739532847475,0.8163,2700.2,2699.7,3.70408]
[1739532847761,4.51974,2700.2,2699.6,3.70412]
[1739532847964,3.70363,2700.1,2699.6,3.70412]
[1739532848167,3.70373,2700.0,2699.5,0.0075]
[1739532848337,0.8163,2699.9,2699.3,8.75]
[1739532848666,3.70407,2699.8,2699.3,8.75]
[1739532849178,4.52017,2699.9,2699.3,8.75]
[1739532849344,4.52017,2699.9,2699.4,3.70451]
[1739532849739,3.70399,2699.8,2699.3,8.75]
[1739532849939,3.70399,2699.8,2699.3,9.995468]
[1739532850140,3.70434,2699.6,2699.0,3.70502]
[1739532850375,3.70461,2699.4,2698.9,9.120509]
[1739532850560,7.40925,2699.4,2699.1,0.04563342]
[1739532850759,0.8163,2699.5,2699.1,3.70492]
[1739532850946,3.70414,2699.7,2699.2,0.0455514]
[1739532851140,4.52044,2699.7,2699.2,0.0455514]
[1739532851537,3.70427,2699.6,2699.2,0.0455514]
[1739532852669,3.70442,2699.5,2699.2,0.0455514]
[1739532852841,3.70442,2699.5,2698.9,12.45512]
[1739532853042,3.70442,2699.5,2699.0,1.29130448]
[1739532853349,3.70453,2699.4,2699.0,1.29130448]
[1739532854251,3.70453,2699.4,2699.0,0.04579248]
[1739532854450,3.70453,2699.4,2699.0,3.75085248]
[1739532854785,3.70427,2699.6,2699.1,3.70492]
[1739532854986,3.70451,2699.5,2699.0,0.04579248]
[1739532855286,3.70459,2699.4,2699.1,0.04577349]
[1739532855482,3.70459,2699.4,2698.9,3.7051]
[1739532855683,3.70459,2699.4,2699.0,0.04589403]
[1739532855883,3.70437,2699.6,2699.0,0.04589403]
[1739532856087,3.70446,2699.5,2699.0,0.04589403]
[1739532856330,3.70446,2699.5,2699.0,3.75095403]
[1739532856614,3.70463,2699.4,2699.0,0.04589403]
[1739532857190,3.70446,2699.5,2699.0,4.20012883]
[1739532858316,3.70427,2699.6,2699.1,3.70493]
[1739532858482,3.70427,2699.6,2699.1,3.75070349]
[1739532859206,4.52052,2699.7,2699.2,3.7048]
[1739532859576,0.8163,2699.7,2699.3,3.75016243]
[1739532859778,4.52044,2699.7,2699.3,0.04553243]
[1739532860041,4.52044,2699.7,2699.1,3.70493]
[1739532860224,4.52044,2699.7,2699.4,0.04541192]
[1739532860517,0.8163,2699.7,2699.5,0.04529141]
[1739532860718,4.52051,2699.7,2699.2,4.12017348]
[1739532860888,4.52051,2699.7,2699.6,0.04517092]
[1739532861091,3.70426,2699.6,2699.2,4.12017348]
[1739532861294,3.70426,2699.6,2699.3,0.41201735]
[1739532861508,3.70426,2699.6,2699.1,3.70484]
[1739532863841,3.70426,2699.6,2699.1,7.4097]
[1739532863994,3.70426,2699.6,2699.2,3.70477]
[1739532864195,4.52046,2699.7,2699.2,3.70477]
[1739532864390,0.8163,2699.7,2699.3,3.70456]
[1739532864987,0.8163,2699.7,2699.3,4.445502]
[1739532865192,0.8163,2699.7,2699.3,3.70456]
[1739532865618,0.8163,2699.7,2699.4,0.04551349]
[1739532866133,0.8163,2699.7,2699.5,3.70434]
[1739532866435,3.70359,2700.1,2699.5,3.70438]
[1739532866632,3.70359,2700.1,2699.6,3.74935046]
[1739532866832,0.7643,2700.2,2699.7,4.44944305]
[1739532867018,0.7643,2700.2,2699.8,3.70397]
[1739532867219,0.7643,2700.2,2699.8,3.7488895]
[1739532867405,0.7643,2700.4,2699.9,3.70379]
[1739532867608,0.7643,2700.4,2700.0,3.70363]
[1739532867804,0.7643,2700.4,2700.0,3.74836106]
[1739532868026,0.7643,2700.4,2700.0,0.04473106]
[1739532868189,0.7643,2700.4,2700.0,3.74841106]
[1739532868394,3.70283,2700.7,2700.0,0.78994717]
[1739532868635,3.70283,2700.7,2700.2,3.70334]
[1739532868636,0.7643,2700.6,2700.2,3.70334]
[1739532868834,11.74381823,2701.2,2700.3,3.7032]
[1739532868835,3.70258,2700.9,2700.3,3.7032]
[1739532868997,0.7643,2701.0,2700.6,3.70275]
[1739532869531,0.7643,2701.0,2700.7,0.04376203]
[1739532869719,0.7643,2701.0,2700.5,3.70301]
[1739532870035,0.7643,2701.0,2700.8,0.04364164]
[1739532870236,0.7643,2701.0,2700.6,3.70287]
[1739532870536,0.7643,2701.0,2700.6,0.8146534]
[1739532870699,0.7643,2701.0,2700.7,0.04376203]
[1739532870895,4.46664,2701.0,2700.7,0.04376203]
[1739532871125,8.16908,2701.0,2700.7,0.04376203]
[1739532871355,3.7026,2700.8,2700.7,0.04376203]
[1739532871645,3.7026,2700.8,2700.0,0.74521611]
[1739532871646,3.70296,2700.6,2700.0,4.44888611]
[1739532871836,3.70296,2700.6,2700.1,1.69026461]
[1739532872209,3.70305,2700.5,2700.1,1.69026461]
[1739532872638,4.46761,2700.3,2699.9,8.75]
[1739532872839,4.46761,2700.3,2699.8,3.70389]
[1739532873643,0.7643,2700.3,2699.9,3.70383]
[1739532874135,4.46735,2700.5,2700.0,3.70367]
[1739532874825,4.46735,2700.5,2700.0,4.444413]
[1739532876309,4.46735,2700.5,2700.0,3.70367]
[1739532876844,4.46735,2700.5,2699.7,2.45473823]
[1739532877034,3.70316,2700.4,2699.9,3.70378]
[1739532877426,3.70316,2700.4,2699.8,3.70384]
[1739532877951,3.70316,2700.4,2699.9,3.70383]
[1739532878632,3.70296,2700.6,2700.0,4.444347]
[1739532878842,3.70296,2700.6,2700.0,3.70358]
[1739532879026,4.51341,2700.7,2700.0,3.70358]
[1739532879349,0.8106,2700.3,2699.9,3.70381]
[1739532879771,0.8106,2700.3,2699.8,3.70385]
[1739532879965,0.8106,2700.6,2700.1,3.70347]
[1739532880112,0.8106,2700.6,2700.2,3.70342]
[1739532880546,0.8106,2700.6,2700.3,0.04368359]
[1739532882050,0.8106,2700.6,2700.2,3.70341]
[1739532882266,0.8106,2700.6,2700.4,0.04356317]
[1739532882587,0.8106,2700.8,2700.5,0.04344275]
[1739532883247,4.51328,2700.8,2700.5,0.04344275]
[1739532883648,4.51328,2700.8,2700.3,3.70325]
[1739532883851,4.51328,2700.8,2700.6,0.04332234]
[1739532884013,0.8106,2700.8,2700.4,3.70305]
[1739532884213,0.8106,2701.0,2700.7,3.74590195]
[1739532884554,0.8106,2701.0,2700.8,0.04301857]
[1739532884918,0.8106,2701.0,2700.6,3.70285]
[1739532885117,0.8106,2701.0,2700.9,0.04286669]
[1739532885315,0.8106,2701.0,2700.7,3.70272]
[1739532885550,4.51267,2701.2,2700.9,0.04286669]
[1739532885746,4.51267,2701.2,2700.8,0.78354408]
[1739532885974,4.51267,2701.2,2701.0,0.04274632]
[1739532886255,3.70233,2701.0,2700.9,0.04286669]
[1739532886461,7.40477,2701.0,2700.5,0.740625]
[1739532886655,7.40477,2701.0,2700.6,0.4443705]
[1739532886834,3.70233,2701.0,2700.6,0.4443705]
[1739532887929,3.70233,2701.0,2700.0,6.89443762]
[1739532887930,3.70267,2700.8,2700.3,3.70329]
[1739532888339,0.8106,2700.9,2700.1,3.370347]
[1739532888591,0.8106,2700.9,2700.4,3.70315]
[1739532889250,0.8106,2700.9,2700.5,3.70294]
[1739532889449,0.8106,2700.9,2700.6,0.740609]
[1739532890327,0.8106,2700.9,2700.4,3.70315]
[1739532890526,4.51307,2700.9,2700.4,3.70315]
[1739532891166,0.8106,2700.9,2700.4,3.70315]
[1739532891336,3.70261,2700.8,2700.2,3.70337]
[1739532891541,3.70281,2700.7,2700.2,3.70337]
[1739532891757,3.70281,2700.7,2700.2,4.4811027]
[1739532891758,0.7959,2700.6,2700.2,4.4811027]
[1739532895218,4.49878,2700.6,2700.2,4.4811027]
[1739532895679,4.49878,2700.6,2700.3,0.04353663]
[1739532897012,0.7959,2700.6,2700.3,0.04353663]
[1739532897289,0.7959,2700.9,2700.5,3.70295]
[1739532897651,0.7959,2700.9,2700.6,0.04321736]
[1739532898680,4.49844,2700.9,2700.6,0.04321736]
[1739532898875,3.70266,2700.8,2700.6,0.04321736]
[1739532899078,4.49844,2700.9,2700.3,3.70319]
[1739532899266,4.49844,2700.9,2700.7,0.04302699]
[1739532899267,3.7026,2700.8,2700.7,0.04302699]
[1739532899462,3.70293,2700.6,2700.1,4.073817]
[1739532899647,3.70293,2700.6,2700.2,0.4073817]
[1739532900191,3.70322,2700.4,2699.9,8.95376]
[1739532900396,0.7959,2700.3,2699.9,8.95376]
[1739532900554,0.7959,2700.3,2699.9,12.65752]
[1739532900956,0.7959,2700.3,2699.9,8.95376]
[1739532901253,0.7959,2700.3,2699.9,3.70376]
[1739532901582,0.7959,2700.3,2699.9,4.51798826]
[1739532902297,0.7959,2700.3,2699.9,0.81422826]
[1739532902491,3.70354,2700.2,2699.7,7.40805]
[1739532902997,3.70385,2699.9,2699.4,0.60673954]
[1739532903214,3.70385,2699.9,2699.4,4.31125954]
[1739532903427,4.46259,2700.2,2699.4,0.60673954]
[1739532903701,0.7591,2700.5,2699.9,3.70372]
[1739532903858,4.46217,2700.5,2699.9,3.70372]
[1739532904392,0.7591,2700.5,2700.1,3.70353]
[1739532904771,0.7591,2700.5,2700.2,3.70339]
[1739532905126,0.823,2700.7,2700.2,3.70339]
[1739532905655,4.52577,2700.7,2700.2,3.70339]
[1739532905855,4.52577,2700.7,2700.0,3.70361]
[1739532906057,4.52577,2700.7,2700.1,4.1109582]
[1739532906471,3.70309,2700.5,2700.0,3.70361]
[1739532907398,4.52582,2700.7,2700.0,3.70361]
[1739532907584,0.823,2700.7,2700.2,3.70331]
[1739532908210,0.823,2700.7,2700.2,7.40665]
[1739532908711,4.52534,2701.0,2700.3,3.70328]
[1739532909020,3.70247,2700.9,2700.3,7.776818]
[1739532909211,3.70247,2700.9,2700.4,3.70314]
[1739532909911,3.70247,2700.9,2700.3,4.073588]
[1739532909912,3.70261,2700.8,2700.3,4.073588]
[1739532910389,3.70247,2700.9,2700.3,3.70326]
[1739532910581,3.70288,2700.6,2700.4,0.04048799]
[1739532910776,4.52601,2700.5,2700.4,0.04048799]
[1739532910976,4.52601,2700.5,2699.9,8.95374]
[1739532910977,3.70319,2700.4,2699.9,8.95374]
[1739532911314,3.70319,2700.4,2699.9,9.548266]
[1739532911514,3.70319,2700.4,2699.9,7.40749]
[1739532911812,0.823,2700.5,2700.1,3.70348]
[1739532912713,4.52602,2700.5,2700.0,3.7037]
[1739532912918,4.52602,2700.5,2699.9,3.70377]
[1739532913083,4.52602,2700.5,2699.9,3.70376]
[1739532913504,0.823,2700.5,2699.9,4.31960982]
[1739532913710,0.823,2700.5,2700.1,3.70353]
[1739532913905,0.823,2700.5,2699.9,0.61584982]
[1739532914107,0.823,2700.8,2700.4,3.70308]
[1739532914506,0.823,2700.8,2700.5,3.70301]
[1739532915286,0.823,2700.8,2700.4,3.70315]
[1739532915914,0.823,2700.8,2700.4,4.073465]
[1739532916116,0.823,2701.0,2700.5,3.70288]
[1739532916617,3.70201,2701.3,2700.5,3.70288]
[1739532916618,0.823,2701.3,2700.5,0.0075]
[1739532916827,0.823,2701.3,2700.7,3.70273]
[1739532916979,0.823,2701.3,2700.8,0.370273]
[1739532917380,0.823,2701.3,2700.9,3.70243]
[1739532917791,0.823,2701.3,2700.7,3.70273]
[1739532917993,4.52495,2701.3,2700.8,3.7026]
[1739532919003,0.823,2701.3,2700.7,3.70273]
[1739532919209,0.823,2701.3,2700.9,3.70242]
[1739532919781,0.823,2701.3,2700.8,3.70255]
[1739532920174,0.823,2701.3,2700.9,3.70244]
[1739532920379,0.823,2701.3,2700.9,3.70239]
[1739532920780,3.70153,2701.6,2701.0,3.70224]
[1739532920980,0.7941,2701.6,2701.2,3.70202]
[1739532921715,0.7941,2701.6,2701.0,3.70225]
[1739532921949,0.7941,2701.6,2701.1,4.31781882]
[1739532923937,0.7941,2701.6,2701.1,0.61569882]
[1739532924493,0.7941,2701.6,2701.1,4.31778882]
[1739532925090,0.7941,2701.7,2701.1,0.61569882]
[1739532925298,4.49554,2701.7,2701.1,4.31781882]
[1739532925511,4.49554,2701.7,2701.2,0.04545121]
[1739532926002,8.19702,2701.7,2701.2,0.04545121]
[1739532926315,4.49554,2701.7,2701.2,0.04545121]
[1739532929057,0.7941,2701.7,2701.2,0.04545121]
[1739532929257,3.70192,2701.3,2701.2,0.04545121]
[1739532929622,3.70192,2701.3,2700.8,5.25]
[1739532929819,3.70192,2701.3,2701.2,0.04184575]
[1739532930021,3.70192,2701.3,2700.8,5.25]
[1739532930518,3.70192,2701.3,2700.9,0.04223462]
[1739532930919,0.7941,2701.4,2700.9,0.04223462]
[1739532931116,0.7941,2701.3,2700.9,0.04223462]
[1739532931320,4.49602,2701.3,2700.9,0.04223462]
[1739532931521,0.7941,2701.3,2700.7,3.70262]
[1739532931721,0.7941,2701.3,2700.8,3.74498683]
[1739532934268,0.7941,2701.3,2700.8,0.04238683]
[1739532934467,3.70214,2701.2,2700.8,0.04238683]
[1739532934775,0.8197,2701.1,2700.9,0.04225719]
[1739532934971,4.52203,2701.0,2700.9,0.04225719]
[1739532935143,1.642124,2701.0,2700.6,0.47553029]
[1739532935367,3.7026,2700.8,2700.7,0.03947959]
[1739532935565,4.5223,2700.8,2700.7,0.03947959]
[1739532935978,0.8197,2700.8,2700.7,0.03947959]
[1739532936856,4.5223,2700.8,2700.7,0.03947959]
[1739532938391,7.5223,2700.8,2700.7,0.03947959]
[1739532938578,8.644787,2700.8,2700.7,0.03947959]
[1739532938778,3.70274,2700.7,2700.6,0.47553029]
[1739532939031,4.52244,2700.7,2700.6,0.47553029]
[1739532944306,5.07244,2700.7,2700.6,0.47553029]
[1739532944817,0.8197,2699.8,2698.9,0.4755]
[1739532945025,3.70427,2699.6,2698.9,4.18059]
[1739532945343,3.70427,2699.6,2699.0,0.04204529]
[1739532945344,3.70441,2699.5,2699.0,0.04204529]
[1739532945497,7.40922,2699.4,2699.0,0.04204529]
[1739532945702,3.7046,2699.4,2699.0,0.04204529]
[1739532947487,3.70432,2699.6,2699.0,3.74704529]
[1739532947682,7.40865,2699.6,2699.0,4.53982582]
[1739532948029,7.40867,2699.6,2699.0,4.53982582]
[1739532948387,3.70432,2699.6,2699.0,4.53982582]
[1739532948787,4.52376,2699.8,2699.0,4.53982582]
[1739532948788,0.8197,2699.8,2699.0,4.53982582]
[1739532949021,0.8197,2699.8,2699.2,3.70479]
[1739532949194,0.8197,2699.8,2699.2,3.70472]
[1739532949403,4.52344,2700.0,2699.5,0.4755]
[1739532949788,4.52344,2700.0,2699.6,0.04017343]
[1739532949989,3.70399,2699.8,2699.6,0.04017343]
[1739532950407,3.70411,2699.7,2699.6,0.04017343]
[1739532950807,0.74081,2699.7,2699.0,0.4755]
[1739532951036,0.74081,2699.7,2699.0,4.18048]
[1739532951037,0.8118,2699.6,2699.0,4.18048]
[1739532951208,0.8118,2699.6,2699.0,7.88548]
[1739532951413,0.8118,2699.6,2699.0,4.18048]
[1739532951624,4.51572,2699.9,2699.0,2.93023823]
[1739532951825,4.51542,2700.1,2699.5,4.17985]
[1739532952030,4.51542,2700.1,2699.6,0.788436]
[1739532952339,3.70322,2700.4,2699.8,0.4755]
[1739532952700,3.70353,2700.2,2699.8,0.4755]
[1739532952916,3.70358,2700.1,2699.8,0.4755]
[1739532953143,3.70353,2700.2,2699.6,4.968126]
[1739532953436,3.70359,2700.1,2699.6,1.263936]
[1739532954340,7.40706,2700.2,2699.6,1.263936]
[1739532954527,3.70353,2700.2,2699.6,1.263936]
[1739532954929,0.8118,2700.3,2699.6,0.788436]
[1739532955113,3.70391,2699.9,2699.4,0.4755]
[1739532955642,3.70391,2699.9,2699.5,0.0403814]
[1739532955814,7.40784,2699.9,2699.5,0.0403814]
[1739532956006,3.7041,2699.8,2699.5,0.0403814]
[1739532956200,3.70425,2699.6,2699.5,0.0403814]
[1739532956428,3.7045,2699.5,2699.0,0.4755]
[1739532956663,0.822021,2699.6,2699.5,0.04043741]
[1739532956820,4.5158,2699.8,2699.0,0.4755]
[1739532957021,3.70466,2699.3,2699.0,0.4755]
[1739532957214,3.70466,2699.3,2699.1,0.04091949]
[1739532957407,3.7048,2699.2,2699.1,0.04091949]
[1739532957727,3.7048,2699.2,2698.7,0.4755]
[1739532957971,3.7048,2699.2,2699.1,0.04091949]
[1739532958240,0.8118,2699.3,2698.8,3.74662114]
[1739532958440,0.8118,2699.3,2699.1,0.04091949]
[1739532958630,0.8118,2699.3,2698.8,3.70534]
[1739532958826,3.70458,2699.4,2699.2,0.04079896]
[1739532959020,3.70473,2699.3,2698.7,0.4755]
[1739532959542,0.8118,2699.5,2698.9,3.7052]
[1739532959705,3.70446,2699.5,2699.0,3.70505]
[1739532959912,3.70446,2699.5,2698.9,3.7052]
[1739532960307,7.40893,2699.5,2698.9,3.7052]
[1739532960649,7.40893,2699.5,2698.7,10.34105823]
[1739532960650,3.70471,2699.3,2698.7,10.34105823]
[1739532960858,3.70471,2699.3,2698.7,0.4755]
[1739532961013,3.70489,2699.2,2698.7,0.4755]
[1739532962054,3.70471,2699.3,2698.7,0.4755]
[1739532962546,3.70471,2699.3,2698.8,3.70533]
[1739532963222,3.7046,2699.4,2698.8,5.018971]
[1739532963536,3.70453,2699.4,2698.8,5.018891]
[1739532964114,3.70428,2699.6,2699.0,3.70498]
[1739532964350,3.70428,2699.6,2699.0,3.70507]
[1739532964549,3.70373,2700.0,2699.3,0.4755]
[1739532964750,4.48922,2700.2,2699.6,3.70417]
[1739532965058,3.70357,2700.1,2699.6,3.70417]
[1739532965547,4.48922,2700.2,2699.6,3.70421]
[1739532965856,3.70325,2700.4,2699.8,4.1794]
[1739532966028,3.70325,2700.4,2699.8,0.4755]
[1739532966231,3.70329,2700.3,2699.8,0.4755]
[1739532966552,3.70325,2700.4,2699.8,0.4755]
[1739532966553,3.70321,2700.4,2699.8,0.4755]
[1739532966853,3.70345,2700.2,2699.8,0.4755]
[1739532967022,4.152081,2700.4,2699.5,0.4755]
[1739532967354,3.70377,2700.0,2699.5,0.4755]
[1739532968313,3.70388,2699.9,2699.5,0.4755]
[1739532969249,3.70398,2699.8,2699.5,0.4755]
[1739532969450,3.70398,2699.8,2699.3,3.70457]
[1739532969653,3.70427,2699.6,2699.2,0.4755]
[1739532969862,3.70445,2699.5,2699.2,0.4755]
[1739532970076,3.7046,2699.4,2698.9,0.4755]
[1739532970215,3.7047,2699.3,2698.9,0.4755]
[1739532970417,4.49013,2699.6,2698.9,4.84424282]
[1739532970639,4.49013,2699.6,2699.0,0.0412922]
[1739532970843,3.70452,2699.5,2699.0,0.0412922]
[1739532971434,3.70433,2699.6,2699.0,0.0412922]
[1739532971660,3.70433,2699.6,2699.1,3.70492]
[1739532972126,3.70406,2699.8,2699.3,0.4755]
[1739532972325,3.70422,2699.7,2699.3,0.4755]
[1739532972526,3.70422,2699.7,2699.4,0.04081008]
[1739532972749,3.70438,2699.5,2699.4,0.04081008]
[1739532973264,3.70438,2699.5,2699.4,0.0407155]
[1739532973487,3.70426,2699.6,2699.0,0.4755]
[1739532973628,3.70426,2699.6,2699.4,0.0407155]
[1739532973963,7.4086,2699.6,2699.0,4.18049]
[1739532974122,7.4086,2699.6,2699.5,0.04059499]
[1739532974327,3.7046,2699.4,2699.0,0.4755]
[1739532977482,3.70432,2699.6,2699.0,4.18056]
[1739532977657,3.70439,2699.5,2699.0,4.18056]
[1739532977985,0.7858,2699.9,2699.0,1.264081]
[1739532978296,3.70459,2699.4,2699.0,0.4755]
[1739532978432,0.7858,2699.9,2699.0,4.18057]
[1739532978639,3.70465,2699.4,2699.0,0.4755]
[1739532979180,3.70493,2699.1,2699.0,0.4755]
[1739532979377,3.70493,2699.1,2698.8,0.4755]
[1739532980044,3.70481,2699.2,2698.8,0.4755]
[1739532980378,3.70481,2699.2,2698.8,4.18084]
[1739532980773,3.70481,2699.2,2698.8,0.4755]
[1739532980980,3.70481,2699.2,2698.8,1.50962682]
[1739532981704,3.70473,2699.3,2698.8,5.21490682]
[1739532983027,3.70473,2699.3,2698.8,8.92018682]
[1739532983161,3.70473,2699.3,2698.8,5.21490682]
[1739532983613,3.70473,2699.3,2698.8,1.50962682]
[1739532983771,3.70483,2699.2,2698.8,1.50962682]
[1739532985508,3.70473,2699.3,2698.8,5.21490682]
[1739532985719,3.70473,2699.3,2698.9,0.04141622]
[1739532986199,1.214277,2699.7,2699.0,0.8961613]
[1739532986362,3.7046,2699.4,2698.9,3.74661622]
[1739532986560,3.70468,2699.3,2699.0,0.04130618]
[1739532987217,3.70468,2699.3,2698.8,4.18083]
[1739532987506,3.70489,2699.2,2699.1,0.04118564]
[1739532988003,3.70489,2699.2,2698.8,0.4755]
[1739532988217,3.70489,2699.2,2699.1,0.04118564]
[1739532988415,3.70489,2699.2,2698.8,0.4755]
[1739532988638,3.70489,2699.2,2698.2,4.15871759]
[1739532988639,3.70562,2698.6,2698.5,5.7255]
[1739532988916,3.70589,2698.4,2698.3,0.4755]
[1739532989279,3.70549,2698.7,2698.0,0.4755]
[1739532989481,3.70631,2698.1,2697.8,0.41539718]
[1739532989789,3.70647,2698.0,2697.8,0.41539718]
[1739532990916,3.70611,2698.3,2697.8,4.12209718]
[1739532991078,4.47114,2698.5,2697.9,3.70651]
[1739532991276,3.70584,2698.5,2697.9,0.83041072]
[1739532991932,3.70591,2698.4,2697.9,4.53694072]
[1739532992105,3.70591,2698.4,2697.9,0.83041072]
[1739532992302,7.41192,2698.4,2697.9,0.83041072]
[1739532992813,3.70604,2698.3,2697.9,0.83041072]
[1739532992985,3.70591,2698.4,2697.8,0.41539718]